Workbook

Sheet Results
C6: Factor | D6: Est | E6: Weights | F6: Results | I6: Interval
B7: Task | C7: Saturation | D7: =Saturation!C12 -> 6 | E7: =Weighting!AE4 -> 0.173553719 | F7: =D7*E7 -> 1.041322314 | I7: > 6 | J7: High cognitive load
C8: Variant flora | D8: ='Variant flora'!C12 -> 4 | E8: =Weighting!AE5 -> 0.1074380165 | F8: =D8*E8 -> 0.4297520661 | H8: 3.2 | I8: 4-6 | J8: Moderate cognitive load
C9: Level of difficulty | D9: ='Level of difficulty'!C12 -> 6 | E9: =Weighting!AE6 -> 0.06611570248 | F9: 0.3966942149 | H9: 1.7 | I9: 2-4 | J9: Low cognitive load
C10: Difficulty of tool use | D10: ='Difficulty of tool use'!C12 -> 6 | E10: =Weighting!AE7 -> 0.02479338843 | F10: 0.1487603306 | H10: 1 | I10: 0-2 | J10: Very low cognitive load
C11: Production awareness | D11: ='Production awareness'!C12 -> 5 | E11: =Weighting!AE8 -> 0.07438016529 | F11: 0.3719008264
B13: Workstation | C13: Number of tools available | D13: ='Number of tools available'!C12 -> 8 | E13: =Weighting!AE9 -> 0.00826446281 | F13: 0.06611570248
C14: Mapping | D14: =Mapping!C12 -> 8 | E14: =Weighting!AE10 -> 0.132231405 | F14: 1.05785124
C15: Parts identification | D15: ='Parts identification'!C12 -> 4 | E15: =Weighting!AE11 -> 0.1074380165 | F15: 0.4297520661
C16: Information cost | D16: ='Information cost'!C12 -> 6 | E16: =Weighting!AE12 -> 0.1239669421 | F16: 0.7438016529
C17: Quality of instruction | D17: ='Quality of instruction'!C12 -> 8 | E17: =Weighting!AE13 -> 0.1074380165 | F17: 0.8595041322
C18: Poke A Yoke & Constraints | D18: =PokeAyoke!C12 -> 8 | E18: =Weighting!AE14 -> 0.07438016529 | F18: 0.5950413223
E22: Sum: | F22: =SUM(F7:F18) -> 6.140495868

Sheet Saturation
B2: Saturation
B3: Description | C3: The saturation of a work station is related to the particular balance of the assembly tasks. Actual work operations can rarely occupy 100% of the available time and the saturation assessment indicates how much of the available time is occupied by work tasks.
B7: Measurement: | C7: Percentage of planned occupied time
I8: Skala | K8: Visaren
B9: How to evaluate (method) | C9: Accurate time studies should be available in most SME's and larger organizations. | I9: 1 | J9: 2 | K9: Nuvärde | L9: =C12 -> 6
I10: 2 | J10: 2 | K10: Bredd | L10: 0.2
I11: 3 | J11: 2 | K11: Resten | L11: =J14-L10-L9 -> 9.8
B12: Estimated current level | C12: 6 | I12: 4 | J12: 2
I13: Botten | J13: =J14/2 -> 8
I14: Summa | J14: 16
B15: Level | C15: Description
B16: L8 | C16: 85% saturation or higher
B17: L7
B18: L6 | C18: 75-85% saturation
B19: L5
B20: L4 | C20: 65-75% saturation
B21: L3
B22: L2 | C22: 65% saturation or lower
B23: L1
B24: L0 | C24: Not applicable

Sheet Variant flora
B2: Variant flora
B3: Description | C3: The variant flora is relevant to manufacturing organizations running a mixed mode assembly flow. A flow where volume and variant products are assembled intermixed and not according to a batching strategy. A variant is defined as product or process variation from the most common type of product.
B7: Measurement: | C7: Percentage of products being considered variant products.
I8: Skala | K8: Visaren
B9: How to evaluate (method) | C9: Assessment of what percentage of daily output is made up of variant products | I9: 1 | J9: 2 | K9: Nuvärde | L9: =C12 -> 4
I10: 2 | J10: 2 | K10: Bredd | L10: 0.2
I11: 3 | J11: 2 | K11: Resten | L11: =J14-L10-L9 -> 11.8
B12: Estimated current level | C12: 4 | I12: 4 | J12: 2
I13: Botten | J13: =J14/2 -> 8
I14: Summa | J14: 16
B15: Level | C15: Description
B16: L8 | C16: One piece production. Full variation.
B17: L7
B18: L6 | C18: Up to 50% variant products
B19: L5
B20: L4 | C20: Up to 35% variant products.
B21: L3
B22: L2 | C22: Up to 10% variant products.
B23: L1
B24: L0 | C24: No variant products.

Sheet Level of difficulty
B2: Level of difficulty
B3: Description | C3: The level of difficulty should be assessed on the entire station and is an estimation about the required physical and mental effort to perform a task
B7: Measurement: | C7: Subjective
I8: Skala | K8: Visaren
B9: How to evaluate (method) | C9: Observation; the assessment is divided into eight categories where the assessment should be based on how long it would take before a recently employed worker is allowed to work alone with the task. | I9: 1 | J9: 2 | K9: Nuvärde | L9: =C12 -> 6
I10: 2 | J10: 2 | K10: Bredd | L10: 0.2
I11: 3 | J11: 2 | K11: Resten | L11: =J14-L10-L9 -> 9.8
B12: Estimated current level | C12: 6 | I12: 4 | J12: 2
I13: Botten | J13: =J14/2 -> 8
I14: Summa | J14: 16
B15: Level | C15: Description
B16: L8 | C16: The task is very difficult and requires significant training and experience.
B17: L7
B18: L6 | C18: The task is slightly complex and requires moderate training and experience.
B19: L5
B20: L4 | C20: The task is quite simple with little training required.
B21: L3
B22: L2 | C22: The task requires little to no training and is recommended for newly employed personnel.
B23: L1
B24: L0 | C24: Not applicable

Sheet Production awareness
B2: Production awareness
B3: Description | C3: An assessment on how much focused attention must be applied to the task and the level of "production awareness" that the worker has to muster.
B7: Measurement: | C7: Subjective
I8: Skala | K8: Visaren
B9: How to evaluate (method) | C9: Observation according to levels | I9: 1 | J9: 2 | K9: Nuvärde | L9: =C12 -> 5
I10: 2 | J10: 2 | K10: Bredd | L10: 0.2
I11: 3 | J11: 2 | K11: Resten | L11: =J14-L10-L9 -> 10.8
B12: Estimated current level | C12: 5 | I12: 4 | J12: 2
I13: Botten | J13: =J14/2 -> 8
I14: Summa | J14: 16
B15: Level | C15: Description
B16: L8 | C16: The assembly task is highly variable and contains little to very little routine work.
B17: L7
B18: L6 | C18: The assembly task is quite variable but still contains much routine work.
B19: L5
B20: L4 | C20: The assembly task is mostly done on routine but deviant parts or assemblies do occur.
B21: L3
B22: L2 | C22: The assembly task is done purely out of routine and the sequence seldom changes.
B23: L1
B24: L0 | C24: Not applicable

Sheet Difficulty of tool use
B2: Difficulty of tool use
B3: Description | C3: The difficulty of tool use should be assessed station wide based on accessibility and operation of a tool. If several tools are used, the assessment should be a mean of these. All tool and fixture use is included in this factor, i.e. Power tools, hand tools, fixtures etc.
B7: Measurement: | C7: Subjective
I8: Skala | K8: Visaren
B9: How to evaluate (method) | C9: Observation according to levels | I9: 1 | J9: 2 | K9: Nuvärde | L9: =C12 -> 6
I10: 2 | J10: 2 | K10: Bredd | L10: 0.2
I11: 3 | J11: 2 | K11: Resten | L11: =J14-L10-L9 -> 9.8
B12: Estimated current level | C12: 6 | I12: 4 | J12: 2
I13: Botten | J13: =J14/2 -> 8
I14: Summa | J14: 16
B15: Level | C15: Description
B16: L8 | C16: The assembly task requires complex tools/tool use and/or special tools to perform
B17: L7
B18: L6 | C18: The assembly task contains moderate tool use of some complexity.
B19: L5
B20: L4 | C20: The assembly task contains little to moderate tool use
B21: L3
B22: L2 | C22: The assembly task is performed mostly by hand and requires little or very simple tool use.
B23: L1
B24: L0 | C24: No tool use

Sheet Number of tools available
B2: Number of tools available
B3: Description | C3: The number of tools available and used on the work station. This factor also includes fixtures and special contraptions that are used for work. If in doubt, include anything that is handled by the worker but that is not part of the product.
B7: Measurement: | C7: Assessment of tool availability
I8: Skala | K8: Visaren
B9: How to evaluate (method) | C9: Observation according to levels | I9: 1 | J9: 2 | K9: Nuvärde | L9: =C12 -> 8
I10: 2 | J10: 2 | K10: Bredd | L10: 0.2
I11: 3 | J11: 2 | K11: Resten | L11: =J14-L10-L9 -> 7.8
B12: Estimated current level | C12: 8 | I12: 4 | J12: 2
I13: Botten | J13: =J14/2 -> 8
I14: Summa | J14: 16
B15: Level | C15: Description
B16: L8 | C16: More than 8 tools
B17: L7
B18: L6 | C18: 5-8 tools and not easily identified
B19: L5
B20: L4 | C20: More than 5 tools and easily identified
B21: L3
B22: L2 | C22: 1 to 5 tools and easily identified
B23: L1
B24: L0 | C24: No tools used

Sheet Mapping
B2: Mapping of workstation
B3: Description | C3: The mapping of a workstation refers to the correspondence with the workstation layout to the assembly sequence. Are items and tools placed in the order that they are to be used?
B7: Measurement: | C7: Subjective
I8: Skala | K8: Visaren
B9: How to evaluate (method) | C9: Observation assessment on correspondence between workstation layout and assembly sequence for common products. | I9: 1 | J9: 2 | K9: Nuvärde | L9: =C12 -> 8
I10: 2 | J10: 2 | K10: Bredd | L10: 0.2
I11: 3 | J11: 2 | K11: Resten | L11: =J14-L10-L9 -> 7.8
B12: Estimated current level | C12: 8 | I12: 4 | J12: 2
I13: Botten | J13: =J14/2 -> 8
I14: Summa | J14: 16
B15: Level | C15: Description
B16: L8 | C16: Workstation layout does not correspond to assembly sequence.
B17: L7
B18: L6 | C18: Workstation layout somewhat corresponds to assembly sequence.
B19: L5
B20: L4 | C20: Workstation layout heavily corresponds to assembly sequence.
B21: L3
B22: L2 | C22: Workstation layout almost completely corresponds to assembly sequence.
B23: L1
B24: L0 | C24: Not applicable/the worker is free to set up the workstation and all it's components to their own preferences.

Sheet Parts identification
B2: Parts identification
B3: Description | C3: Parts identification can be done in several different ways. The traditional way is through article numbers and material racks but other approaches can include kitting and alternate parts identification syntaxes.
B7: Measurement: | C7: Selection
I8: Skala | K8: Visaren
B9: How to evaluate (method) | C9: Determine type of parts identification system | I9: 1 | J9: 2 | K9: Nuvärde | L9: =C12 -> 4
I10: 2 | J10: 2 | K10: Bredd | L10: 0.2
I11: 3 | J11: 2 | K11: Resten | L11: =J14-L10-L9 -> 11.8
B12: Estimated current level | C12: 4 | I12: 4 | J12: 2
I13: Botten | J13: =J14/2 -> 8
I14: Summa | J14: 16
B15: Level | C15: Description
B16: L8 | C16: Majority of parts identification through article numbers.
B17: L7
B18: L6 | C18: Majority of parts identification through symbol syntax or similar.
B19: L5
B20: L4 | C20: Unsequenced kits or kanban is used for most items.
B21: L3
B22: L2 | C22: Sequenced kits or kanban is used for most items.
B23: L1
B24: L0 | C24: Not applicable

Sheet Information cost
B2: Information cost
B3: Description | C3: The cost of information can be described as an assessment of how much physical or cognitive effort that is required to utilize the information.
B7: Measurement: | C7: Subjective
I8: Skala | K8: Visaren
B9: How to evaluate (method) | C9: Determine if access to information requires physical or cognitive effort. | I9: 1 | J9: 2 | K9: Nuvärde | L9: =C12 -> 6
I10: 2 | J10: 2 | K10: Bredd | L10: 0.2
I11: 3 | J11: 2 | K11: Resten | L11: =J14-L10-L9 -> 9.8
B12: Estimated current level | C12: 6 | I12: 4 | J12: 2
I13: Botten | J13: =J14/2 -> 8
I14: Summa | J14: 16
B15: Level | C15: Description
B16: L8 | C16: Significant movement or actions are required for information access.
B17: L7
B18: L6 | C18: Information is accessible through some cognitive or physical effort (several steps or visual search).
B19: L5
B20: L4 | C20: Information is no more than one step away and easily found.
B21: L3
B22: L2 | C22: Information is not required for standard operations.
B23: L1
B24: L0 | C24: No instructions required

Sheet Quality of instruction
B2: Quality of instruction
B3: Description | C3: The quality of instruction is a subjective measure that can be assessed according to several different factors. Focus on general visibility and readability of the instructions is recommended
B7: Measurement: | C7: Subjective
I8: Skala | K8: Visaren
B9: How to evaluate (method) | C9: Observation assessment on quality of instruction. | I9: 1 | J9: 2 | K9: Nuvärde | L9: =C12 -> 8
I10: 2 | J10: 2 | K10: Bredd | L10: 0.2
I11: 3 | J11: 2 | K11: Resten | L11: =J14-L10-L9 -> 7.8
B12: Estimated current level | C12: 8 | I12: 4 | J12: 2
I13: Botten | J13: =J14/2 -> 8
I14: Summa | J14: 16
B15: Level | C15: Description
B16: L8 | C16: Instruction is filled with non priority information. Visibility AND readability is diminished.
B17: L7
B18: L6 | C18: Assembly sequences are not clearly separated and visibility OR readability is diminished.
B19: L5
B20: L4 | C20: Assembly sequences are separated and contains mostly relevant information
B21: L3
B22: L2 | C22: Assembly sequences are clearly separated and contains only relevant information
B23: L1
B24: L0 | C24: No instructions required

Sheet PokeAyoke
B2: Poke-a-yoke and constraints
B3: Description | C3: Using poke-a-yoke solutions or constraints in assembly is a common way to reduce assembly errors. This includes designing the task and/or the product so that assembly errors cannot be made.
B7: Measurement:
I8: Skala | K8: Visaren
B9: How to evaluate (method) | C9: Determine to what extent constraints or poke-a-yoke solutions exist. | I9: 1 | J9: 2 | K9: Nuvärde | L9: =C12 -> 8
I10: 2 | J10: 2 | K10: Bredd | L10: 0.2
I11: 3 | J11: 2 | K11: Resten | L11: =J14-L10-L9 -> 7.8
B12: Estimated current level | C12: 8 | I12: 4 | J12: 2
I13: Botten | J13: =J14/2 -> 8
I14: Summa | J14: 16
B15: Level | C15: Description
B16: L8 | C16: No poke-a-yoke solutions are implemented in the task.
B17: L7
B18: L6 | C18: Assembly constraints are present but not throughout the assembly sequence.
B19: L5
B20: L4 | C20: Assembly constraints are present in most of the assembly sequence.
B21: L3
B22: L2 | C22: Assembly errors can barely be made due to the design and fit of the product.
B23: L1
B24: L0 | C24: Assembly errors cannot be made due to the design and fit of the product.

Sheet Weighting
A1: Weighting of factors | B1: Modified from Olsson, Fredy (1995) Principkonstruktion. Lunds tekniska högskola, institutionen för maskinkonstruktion.
A2: Compare the factors pair wise, AB, AC, AD, BC, BD etc. If A is more important than B, type 2 in the cell A/B. If A & B are equally important, type 1. If A is less important than B, type 0. | C2: =A4 -> Saturation | D2: =A5 -> Variant flora | E2: =A6 -> Level of difficulty | F2: =A7 -> Difficulty of tool use | G2: =A8 -> Production awareness | H2: =A9 -> Number of tools available | I2: =A10 -> Mapping | J2: =A11 -> Parts identification | K2: =A12 -> Information cost | L2: =A13 -> Quality of instruction | M2: =A14 -> Poke A Yoke & Constraints | O2: ="…"&RIGHT($A16,10) -> … | P2: ="…"&RIGHT($A17,10) -> … | Q2: ="…"&RIGHT($A18,10) -> … | R2: ="…"&RIGHT($A19,10) -> … | S2: ="…"&RIGHT($A20,10) -> … | T2: ="…"&RIGHT($A21,10) -> … | U2: ="…"&RIGHT($A22,10) -> … | V2: ="…"&RIGHT($A23,10) -> … | W2: ="…"&RIGHT($A24,10) -> … | X2: ="…"&RIGHT($A25,10) -> … | Y2: ="…"&RIGHT($A26,10) -> … | Z2: ="…"&RIGHT($A27,10) -> … | AA2: ="…"&RIGHT($A28,10) -> … | AB2: ="…"&RIGHT($A29,10) -> …
C3: A | D3: B | E3: C | F3: D | G3: E | H3: F | I3: G | J3: H | K3: I | L3: J | M3: K | N3: L | O3: M | P3: N | Q3: O | R3: P | S3: Q | T3: R | U3: S | V3: T | W3: U | X3: V | Y3: W | Z3: X | AA3: Y | AB3: Z | AC3: Kf | AD3: ∑ | AE3: Vf | AF3: Rang
A4: =Results!C7 -> Saturation | B4: A | C4: 0 | D4: 2 | E4: 2 | F4: 2 | G4: 2 | H4: 2 | I4: 2 | J4: 2 | K4: 2 | L4: 2 | M4: 2 | AC4: 1 | AD4: =IF(A4<>"",SUM(C4:AC4),1) -> 21 | AE4: =AD4/AD$30 -> 0.173553719 | AF4: =RANK(AE4,$AE$4:$AE$29) -> 1
A5: =Results!C8 -> Variant flora | C5: B | D5: =-SUM(D$4:D4) -> -2 | E5: 1 | F5: 2 | G5: 2 | H5: 2 | I5: 1 | J5: 0 | K5: 1 | L5: 1 | M5: 2 | AC5: 3 | AD5: =IF(A5<>"",SUM(C5:AC5),0) -> 13 | AE5: 0.1074380165 | AF5: 4
A6: =Results!C9 -> Level of difficulty | D6: C | E6: =-SUM(E$4:E5) -> -3 | F6: 2 | G6: 1 | H6: 2 | I6: 0 | J6: 0 | K6: 0 | L6: 1 | M6: 0 | AC6: 5 | AD6: 8 | AE6: 0.06611570248 | AF6: 9
A7: =Results!C10 -> Difficulty of tool use | E7: D | F7: =-SUM(F$4:F6) -> -6 | G7: 0 | H7: 2 | I7: 0 | J7: 0 | K7: 0 | L7: 0 | M7: 0 | AC7: 7 | AD7: 3 | AE7: 0.02479338843 | AF7: 10
A8: =Results!C11 -> Production awareness | F8: E | G8: =-SUM(G$4:G7) -> -5 | H8: 2 | I8: 0 | J8: 1 | K8: 0 | L8: 1 | M8: 1 | AC8: 9 | AD8: 9 | AE8: 0.07438016529 | AF8: 7
A9: =Results!C13 -> Number of tools available | G9: F | H9: =-SUM(H$4:H8) -> -10 | I9: 0 | J9: 0 | K9: 0 | L9: 0 | M9: 0 | AC9: 11 | AD9: 1 | AE9: 0.00826446281 | AF9: 11
A10: =Results!C14 -> Mapping | H10: G | I10: =-SUM(I$4:I9) -> -3 | J10: 1 | K10: 1 | L10: 2 | M10: 2 | AC10: 13 | AD10: 16 | AE10: 0.132231405 | AF10: 2
A11: =Results!C15 -> Parts identification | I11: H | J11: =-SUM(J$4:J10) -> -4 | K11: 1 | L11: 0 | M11: 1 | AC11: 15 | AD11: 13 | AE11: 0.1074380165 | AF11: 4
A12: =Results!C16 -> Information cost | J12: I | K12: =-SUM(K$4:K11) -> -5 | L12: 1 | M12: 2 | AC12: 17 | AD12: 15 | AE12: 0.1239669421 | AF12: 3
A13: =Results!C17 -> Quality of instruction | K13: J | L13: =-SUM(L$4:L12) -> -8 | M13: 2 | AC13: 19 | AD13: 13 | AE13: 0.1074380165 | AF13: 4
A14: =Results!C18 -> Poke A Yoke & Constraints | L14: K | M14: =-SUM(M$4:M13) -> -12 | AC14: 21 | AD14: 9 | AE14: 0.07438016529 | AF14: 7
M15: L | N15: =-SUM(N$4:N14) -> 0 | AC15: 23 | AD15: 0 | AE15: 0 | AF15: 12
N16: M | O16: =-SUM(O$4:O15) -> 0 | AC16: 25 | AD16: 0 | AE16: 0 | AF16: 12
O17: N | P17: =-SUM(P$4:P16) -> 0 | AC17: 27 | AD17: 0 | AE17: 0 | AF17: 12
P18: O | Q18: =-SUM(Q$4:Q17) -> 0 | AC18: 29 | AD18: 0 | AE18: 0 | AF18: 12
Q19: P | R19: =-SUM(R$4:R18) -> 0 | AC19: 31 | AD19: 0 | AE19: 0 | AF19: 12
R20: Q | S20: =-SUM(S$4:S19) -> 0 | AC20: 33 | AD20: 0 | AE20: 0 | AF20: 12
S21: R | T21: =-SUM(T$4:T20) -> 0 | AC21: 35 | AD21: 0 | AE21: 0 | AF21: 12
T22: S | U22: =-SUM(U$4:U21) -> 0 | AC22: 37 | AD22: 0 | AE22: 0 | AF22: 12
U23: T | V23: =-SUM(V$4:V22) -> 0 | AC23: 39 | AD23: 0 | AE23: 0 | AF23: 12
V24: U | W24: =-SUM(W$4:W23) -> 0 | AC24: 41 | AD24: 0 | AE24: 0 | AF24: 12
W25: V | X25: =-SUM(X$4:X24) -> 0 | AC25: 43 | AD25: 0 | AE25: 0 | AF25: 12
X26: W | Y26: =-SUM(Y$4:Y25) -> 0 | AC26: 45 | AD26: 0 | AE26: 0 | AF26: 12
Y27: X | Z27: =-SUM(Z$4:Z26) -> 0 | AC27: 47 | AD27: 0 | AE27: 0 | AF27: 12
Z28: Y | AA28: =-SUM(AA$4:AA27) -> 0 | AC28: 49 | AD28: 0 | AE28: 0 | AF28: 12
AA29: Z | AB29: =-SUM(AB$4:AB28) -> 0 | AC29: 51 | AD29: 0 | AE29: 0 | AF29: 12
AC30: Tot | AD30: =SUM(AD4:AD29) -> 121 | AE30: =SUM(AE4:AE29) -> 1
